[Event "Rapid Tournament (RAP)"]
[Site "Biel, Switzerland"]
[Date "2026.07.12"]
[Round "8.24"]
[White "Haugner, Jan"]
[Black "Berezovskii, Arina"]
[Result "1-0"]
[TimeControl "15 + 5"]
[WhiteTitle "-"]
[BlackTitle "-"]
[WhiteFideId "24655244"]
[BlackFideId "34449850"]
[WhiteElo "2079"]
[BlackElo "1895"]

1. e4 {[%clk 00:15:08]} {[%emt 00:00:02]} e5 {[%clk 00:15:08]} {[%emt
00:00:03]} 2. Nf3 {[%clk 00:15:12]} {[%emt 00:00:03]} Nf6 {[%clk 00:15:12]} 3.
Nc3 {[%clk 00:15:14]} {[%emt 00:00:01]} Nc6 {[%clk 00:15:16]} {[%emt 00:00:01]}
4. Bb5 {[%clk 00:15:18]} {[%emt 00:00:02]} Bb4 {[%clk 00:15:14]} {[%emt
00:00:06]} 5. O-O {[%clk 00:15:18]} {[%emt 00:00:04]} O-O {[%clk 00:15:17]}
{[%emt 00:00:03]} 6. Bxc6 {[%clk 00:15:21]} {[%emt 00:00:02]} dxc6 {[%clk
00:15:19]} {[%emt 00:00:03]} 7. d3 {[%clk 00:15:25]} {[%emt 00:00:01]} Re8
{[%clk 00:15:15]} {[%emt 00:00:09]} 8. h3 {[%clk 00:15:23]} {[%emt 00:00:06]}
h6 {[%clk 00:15:17]} {[%emt 00:00:03]} 9. Ne2 {[%clk 00:15:03]} {[%emt
00:00:25]} Bc5 {[%clk 00:14:48]} {[%emt 00:00:34]} 10. Ng3 {[%clk 00:14:56]}
{[%emt 00:00:12]} a5 {[%clk 00:14:19]} {[%emt 00:00:35]} 11. a4 {[%clk
00:14:32]} {[%emt 00:00:28]} b5 {[%clk 00:13:57]} {[%emt 00:00:28]} 12. Qe2
{[%clk 00:14:06]} {[%emt 00:00:31]} Bb6 {[%clk 00:13:08]} {[%emt 00:00:54]} 13.
Nh4 {[%clk 00:12:58]} {[%emt 00:01:13]} Qd4 {[%clk 00:11:15]} {[%emt 00:01:58]}
14. Nhf5 {[%clk 00:12:29]} {[%emt 00:00:34]} Qb4 {[%clk 00:10:50]} {[%emt
00:00:29]} 15. b3 {[%clk 00:11:50]} {[%emt 00:00:44]} Bd4 {[%clk 00:10:02]}
{[%emt 00:00:53]} 16. Nxd4 {[%clk 00:10:21]} {[%emt 00:01:35]} Qxd4 {[%clk
00:09:53]} {[%emt 00:00:14]} 17. Be3 {[%clk 00:10:17]} {[%emt 00:00:08]} Qb4
{[%clk 00:09:18]} {[%emt 00:00:40]} 18. f4 {[%clk 00:10:06]} {[%emt 00:00:17]}
Qe7 {[%clk 00:07:33]} {[%emt 00:01:50]} 19. fxe5 {[%clk 00:09:17]} {[%emt
00:00:53]} Qxe5 {[%clk 00:07:33]} {[%emt 00:00:06]} 20. Qf2 {[%clk 00:09:21]}
{[%emt 00:00:01]} Rf8 {[%clk 00:06:36]} {[%emt 00:01:03]} 21. Bd4 {[%clk
00:09:09]} {[%emt 00:00:16]} Qg5 {[%clk 00:06:30]} {[%emt 00:00:10]} 22. Bxf6
{[%clk 00:09:04]} {[%emt 00:00:11]} gxf6 {[%clk 00:05:47]} {[%emt 00:00:48]} 23.
Kh2 {[%clk 00:08:52]} {[%emt 00:00:16]} Kg7 {[%clk 00:05:18]} {[%emt 00:00:34]}
24. Nf5+ {[%clk 00:07:05]} {[%emt 00:01:53]} Bxf5 {[%clk 00:04:59]} {[%emt
00:00:24]} 25. Qxf5 {[%clk 00:07:09]} {[%emt 00:00:01]} Rfe8 {[%clk 00:04:16]}
{[%emt 00:00:48]} 26. Rf3 {[%clk 00:06:41]} {[%emt 00:00:33]} Qxf5 {[%clk
00:03:06]} {[%emt 00:01:15]} 27. Rxf5 {[%clk 00:06:43]} {[%emt 00:00:02]} b4
{[%clk 00:02:13]} {[%emt 00:00:59]} 28. Raf1 {[%clk 00:06:34]} {[%emt
00:00:13]} Re6 {[%clk 00:02:16]} {[%emt 00:00:02]} 29. Rc5 {[%clk 00:06:34]}
{[%emt 00:00:06]} Rae8 {[%clk 00:01:07]} {[%emt 00:01:14]} 30. Rff5 {[%clk
00:06:08]} {[%emt 00:00:31]} Re5 {[%clk 00:00:56]} {[%emt 00:00:16]} 31. Rxa5
{[%clk 00:05:50]} {[%emt 00:00:22]} Kg6 {[%clk 00:00:36]} {[%emt 00:00:26]} 32.
Rfxe5 {[%clk 00:05:44]} {[%emt 00:00:11]} fxe5 {[%clk 00:00:39]} {[%emt
00:00:01]} 33. Rc5 {[%clk 00:05:45]} {[%emt 00:00:04]} Re6 {[%clk 00:00:43]}
{[%emt 00:00:02]} 34. Rc4 {[%clk 00:05:40]} {[%emt 00:00:10]} f5 {[%clk
00:00:43]} {[%emt 00:00:05]} 35. exf5+ {[%clk 00:05:42]} {[%emt 00:00:04]} Kxf5
{[%clk 00:00:46]} 36. Rxb4 {[%clk 00:05:43]} {[%emt 00:00:04]} c5 {[%clk
00:00:37]} {[%emt 00:00:14]} 37. Rc4 {[%clk 00:05:40]} {[%emt 00:00:08]} Rc6
{[%clk 00:00:27]} {[%emt 00:00:15]} 38. a5 {[%clk 00:05:09]} {[%emt 00:00:35]}
Ke6 {[%clk 00:00:17]} {[%emt 00:00:16]} 39. b4 {[%clk 00:05:09]} {[%emt
00:00:04]} Kd5 {[%clk 00:00:11]} {[%emt 00:00:11]} 40. Rxc5+ {[%clk 00:04:50]}
{[%emt 00:00:25]} Rxc5 {[%clk 00:00:15]} {[%emt 00:00:01]} 41. bxc5 {[%clk
00:04:54]} Kxc5 {[%clk 00:00:18]} {[%emt 00:00:02]} 42. g4 {[%clk 00:04:58]}
{[%emt 00:00:01]} Kb5 {[%clk 00:00:15]} {[%emt 00:00:08]} 43. h4 {[%clk
00:05:02]} c5 {[%clk 00:00:20]} 44. g5 {[%clk 00:05:05]} {[%emt 00:00:02]} hxg5
{[%clk 00:00:14]} {[%emt 00:00:11]} 45. hxg5 {[%clk 00:05:09]} {[%emt
00:00:01]} c4 {[%clk 00:00:18]} 46. g6 {[%clk 00:04:59]} {[%emt 00:00:15]} Kxa5
{[%clk 00:00:07]} {[%emt 00:00:16]} 47. g7 {[%clk 00:05:02]} {[%emt 00:00:01]}
Kb4 {[%clk 00:00:09]} {[%emt 00:00:03]} 48. g8=Q {[%clk 00:05:02]} {[%emt
00:00:05]} c3 {[%clk 00:00:08]} {[%emt 00:00:06]} 49. Qc4+ {[%clk 00:05:03]}
{[%emt 00:00:04]} 1-0

[Event "Rapid Tournament (RAP)"]
[Site "Biel, Switzerland"]
[Date "2026.07.12"]
[Round "8.25"]
[White "Zecirovic, Giacomo"]
[Black "Piazza, Carlo"]
[Result "1-0"]
[TimeControl "15 + 5"]
[WhiteTitle "-"]
[BlackTitle "-"]
[WhiteFideId "1339451"]
[BlackFideId "809683"]
[WhiteElo "1886"]
[BlackElo "2076"]

1. e4 {[%clk 00:15:00]} {[%emt 00:00:10]} c5 {[%clk 00:15:08]} {[%emt
00:00:02]} 2. c3 {[%clk 00:15:03]} {[%emt 00:00:02]} Nf6 {[%clk 00:15:11]} 3.
e5 {[%clk 00:15:07]} {[%emt 00:00:02]} Nd5 {[%clk 00:15:15]} {[%emt 00:00:01]}
4. d4 {[%clk 00:15:10]} {[%emt 00:00:01]} cxd4 {[%clk 00:15:19]} {[%emt
00:00:01]} 5. Nf3 {[%clk 00:15:14]} {[%emt 00:00:02]} Nc6 {[%clk 00:15:23]}
{[%emt 00:00:01]} 6. cxd4 {[%clk 00:15:17]} {[%emt 00:00:02]} d6 {[%clk
00:15:26]} {[%emt 00:00:02]} 7. Bc4 {[%clk 00:15:18]} {[%emt 00:00:05]} dxe5
{[%clk 00:15:30]} {[%emt 00:00:02]} 8. Nxe5 {[%clk 00:15:19]} {[%emt 00:00:03]}
e6 {[%clk 00:14:04]} {[%emt 00:01:30]} 9. O-O {[%clk 00:15:19]} {[%emt
00:00:05]} Be7 {[%clk 00:12:37]} {[%emt 00:01:33]} 10. Re1 {[%clk 00:14:12]}
{[%emt 00:01:11]} O-O {[%clk 00:12:23]} {[%emt 00:00:19]} 11. Nc3 {[%clk
00:14:11]} {[%emt 00:00:05]} Ncb4 {[%clk 00:11:25]} {[%emt 00:01:04]} 12. Bb3
{[%clk 00:13:36]} {[%emt 00:00:40]} Nxc3 {[%clk 00:11:22]} {[%emt 00:00:08]} 13.
bxc3 {[%clk 00:13:39]} {[%emt 00:00:02]} Nd5 {[%clk 00:11:25]} {[%emt
00:00:02]} 14. Qd3 {[%clk 00:13:36]} {[%emt 00:00:08]} Bf6 {[%clk 00:11:06]}
{[%emt 00:00:24]} 15. Bc2 {[%clk 00:12:31]} {[%emt 00:01:09]} g6 {[%clk
00:11:08]} {[%emt 00:00:04]} 16. Qg3 {[%clk 00:11:18]} {[%emt 00:01:18]} Bg7
{[%clk 00:10:46]} {[%emt 00:00:28]} 17. h4 {[%clk 00:10:35]} {[%emt 00:00:47]}
Qc7 {[%clk 00:10:04]} {[%emt 00:00:47]} 18. Bd2 {[%clk 00:10:20]} {[%emt
00:00:20]} f6 {[%clk 00:08:41]} {[%emt 00:01:27]} 19. Nd3 {[%clk 00:10:16]}
{[%emt 00:00:09]} Qxg3 {[%clk 00:08:43]} {[%emt 00:00:05]} 20. fxg3 {[%clk
00:10:19]} {[%emt 00:00:01]} Bd7 {[%clk 00:08:18]} {[%emt 00:00:30]} 21. Nc5
{[%clk 00:10:17]} {[%emt 00:00:06]} Bc6 {[%clk 00:07:36]} {[%emt 00:00:48]} 22.
Nxe6 {[%clk 00:10:08]} {[%emt 00:00:14]} Rfc8 {[%clk 00:07:08]} {[%emt
00:00:33]} 23. c4 {[%clk 00:09:55]} {[%emt 00:00:17]} Nb6 {[%clk 00:06:26]}
{[%emt 00:00:47]} 24. Bb3 {[%clk 00:09:21]} {[%emt 00:00:39]} Ba4 {[%clk
00:04:42]} {[%emt 00:01:49]} 25. Nxg7 {[%clk 00:09:12]} {[%emt 00:00:14]} Kxg7
{[%clk 00:04:35]} {[%emt 00:00:13]} 26. Re7+ {[%clk 00:09:12]} {[%emt
00:00:04]} Kh8 {[%clk 00:03:35]} {[%emt 00:01:07]} 27. Bh6 {[%clk 00:08:32]}
{[%emt 00:00:43]} Re8 {[%clk 00:01:44]} {[%emt 00:01:57]} 28. Rae1 {[%clk
00:08:35]} {[%emt 00:00:02]} Rxe7 {[%clk 00:01:43]} {[%emt 00:00:06]} 29. Rxe7
{[%clk 00:08:38]} {[%emt 00:00:01]} f5 {[%clk 00:01:40]} {[%emt 00:00:09]} 30.
Rxb7 {[%clk 00:08:09]} {[%emt 00:00:33]} Bxb3 {[%clk 00:01:30]} {[%emt
00:00:16]} 31. axb3 {[%clk 00:08:13]} {[%emt 00:00:02]} Nc8 {[%clk 00:00:40]}
{[%emt 00:00:55]} 32. c5 {[%clk 00:08:10]} {[%emt 00:00:07]} a5 {[%clk
00:00:40]} {[%emt 00:00:06]} 33. d5 {[%clk 00:08:10]} {[%emt 00:00:04]} 1-0

[Event "Rapid Tournament (RAP)"]
[Site "Biel, Switzerland"]
[Date "2026.07.12"]
[Round "8.26"]
[White "Hornung, Hans"]
[Black "Varela Tavares, Goncalo"]
[Result "1-0"]
[TimeControl "15 + 5"]
[WhiteTitle "-"]
[BlackTitle "-"]
[WhiteFideId "4615140"]
[BlackFideId "1344773"]
[WhiteElo "2040"]
[BlackElo "1880"]

1. d4 {[%clk 00:15:08]} d5 {[%clk 00:15:08]} {[%emt 00:00:03]} 2. c4 {[%clk
00:15:11]} {[%emt 00:00:04]} e6 {[%clk 00:15:09]} {[%emt 00:00:01]} 3. Nc3
{[%clk 00:15:13]} {[%emt 00:00:03]} Nf6 {[%clk 00:15:12]} {[%emt 00:00:03]} 4.
Bg5 {[%clk 00:15:15]} {[%emt 00:00:02]} Be7 {[%clk 00:15:15]} {[%emt 00:00:02]}
5. cxd5 {[%clk 00:15:17]} {[%emt 00:00:03]} exd5 {[%clk 00:15:18]} {[%emt
00:00:02]} 6. e3 {[%clk 00:15:16]} {[%emt 00:00:07]} O-O {[%clk 00:15:13]}
{[%emt 00:00:16]} 7. Bd3 {[%clk 00:15:19]} {[%emt 00:00:06]} c6 {[%clk
00:15:09]} {[%emt 00:00:08]} 8. Qc2 {[%clk 00:15:15]} {[%emt 00:00:08]} Nbd7
{[%clk 00:15:06]} {[%emt 00:00:09]} 9. Nf3 {[%clk 00:15:09]} {[%emt 00:00:11]}
Re8 {[%clk 00:15:03]} {[%emt 00:00:09]} 10. O-O {[%clk 00:15:10]} {[%emt
00:00:04]} Nf8 {[%clk 00:15:05]} {[%emt 00:00:02]} 11. h3 {[%clk 00:15:08]}
{[%emt 00:00:07]} Be6 {[%clk 00:14:31]} {[%emt 00:00:39]} 12. Ne5 {[%clk
00:14:41]} {[%emt 00:00:31]} Rc8 {[%clk 00:13:50]} {[%emt 00:00:47]} 13. f4
{[%clk 00:14:27]} {[%emt 00:00:19]} c5 {[%clk 00:13:07]} {[%emt 00:00:47]} 14.
Qf2 {[%clk 00:13:37]} {[%emt 00:00:55]} h6 {[%clk 00:12:21]} {[%emt 00:00:52]}
15. Bxf6 {[%clk 00:12:04]} {[%emt 00:01:37]} Bxf6 {[%clk 00:12:19]} {[%emt
00:00:08]} 16. Rad1 {[%clk 00:11:36]} {[%emt 00:00:32]} a6 {[%clk 00:10:22]}
{[%emt 00:02:03]} 17. f5 {[%clk 00:10:23]} {[%emt 00:01:17]} Bd7 {[%clk
00:09:51]} {[%emt 00:00:37]} 18. Nxd5 {[%clk 00:08:37]} {[%emt 00:01:51]} Bxe5
{[%clk 00:09:46]} {[%emt 00:00:10]} 19. dxe5 {[%clk 00:08:40]} {[%emt
00:00:02]} Rxe5 {[%clk 00:09:39]} {[%emt 00:00:12]} 20. f6 {[%clk 00:07:51]}
{[%emt 00:00:54]} g6 {[%clk 00:08:35]} {[%emt 00:01:09]} 21. Qf4 {[%clk
00:06:14]} {[%emt 00:01:41]} Rg5 {[%clk 00:05:38]} {[%emt 00:03:03]} 22. Ne7+
{[%clk 00:05:41]} {[%emt 00:00:38]} Kh7 {[%clk 00:05:36]} {[%emt 00:00:07]} 23.
Bc4 {[%clk 00:05:05]} {[%emt 00:00:40]} Ra8 {[%clk 00:04:04]} {[%emt 00:01:38]}
24. Bxf7 {[%clk 00:04:06]} {[%emt 00:01:04]} Qb6 {[%clk 00:04:00]} {[%emt
00:00:09]} 25. Nxg6 {[%clk 00:03:00]} {[%emt 00:01:10]} Bc6 {[%clk 00:03:08]}
{[%emt 00:00:58]} 26. Nxf8+ {[%clk 00:02:19]} {[%emt 00:00:46]} Rxf8 {[%clk
00:03:10]} {[%emt 00:00:03]} 27. Bd5 {[%clk 00:01:29]} {[%emt 00:00:55]} Rfg8
{[%clk 00:00:49]} {[%emt 00:02:26]} 28. Bxg8+ {[%clk 00:00:43]} {[%emt
00:00:50]} Rxg8 {[%clk 00:00:42]} {[%emt 00:00:12]} 29. Rd2 {[%clk 00:00:33]}
{[%emt 00:00:15]} Qa5 {[%clk 00:00:23]} {[%emt 00:00:24]} 30. Qf5+ {[%clk
00:00:29]} {[%emt 00:00:09]} Rg6 {[%clk 00:00:26]} {[%emt 00:00:02]} 31. Rd7+
{[%clk 00:00:29]} {[%emt 00:00:05]} Bxd7 {[%clk 00:00:19]} {[%emt 00:00:13]} 32.
Qxd7+ {[%clk 00:00:33]} {[%emt 00:00:01]} Kh8 {[%clk 00:00:19]} {[%emt
00:00:05]} 33. f7 {[%clk 00:00:28]} {[%emt 00:00:10]} 1-0

[Event "Rapid Tournament (RAP)"]
[Site "Biel, Switzerland"]
[Date "2026.07.12"]
[Round "8.27"]
[White "Materia, Matteo"]
[Black "De Gregorio, Alexis"]
[Result "1-0"]
[TimeControl "15 + 5"]
[WhiteTitle "-"]
[BlackTitle "-"]
[WhiteFideId "45150575"]
[BlackFideId "1310054"]
[WhiteElo "1868"]
[BlackElo "2030"]

1. Nf3 {[%clk 00:15:07]} {[%emt 00:00:02]} Nf6 {[%clk 00:15:08]} {[%emt
00:00:05]} 2. b3 {[%clk 00:15:12]} g6 {[%clk 00:15:01]} {[%emt 00:00:11]} 3.
Bb2 {[%clk 00:15:16]} Bg7 {[%clk 00:15:04]} {[%emt 00:00:01]} 4. e3 {[%clk
00:15:18]} {[%emt 00:00:03]} d5 {[%clk 00:15:04]} {[%emt 00:00:05]} 5. Be2
{[%clk 00:15:20]} {[%emt 00:00:03]} O-O {[%clk 00:15:06]} {[%emt 00:00:03]} 6.
O-O {[%clk 00:15:22]} {[%emt 00:00:03]} c5 {[%clk 00:15:02]} {[%emt 00:00:09]}
7. d4 {[%clk 00:15:23]} {[%emt 00:00:04]} Ne4 {[%clk 00:14:56]} {[%emt
00:00:11]} 8. Qc1 {[%clk 00:14:58]} {[%emt 00:00:30]} Nc6 {[%clk 00:14:30]}
{[%emt 00:00:31]} 9. dxc5 {[%clk 00:14:47]} {[%emt 00:00:16]} Nxc5 {[%clk
00:14:21]} {[%emt 00:00:15]} 10. Bxg7 {[%clk 00:14:48]} {[%emt 00:00:03]} Kxg7
{[%clk 00:14:24]} {[%emt 00:00:02]} 11. Qb2+ {[%clk 00:14:52]} {[%emt
00:00:02]} Kg8 {[%clk 00:13:56]} {[%emt 00:00:33]} 12. Rd1 {[%clk 00:14:55]} e6
{[%clk 00:12:52]} {[%emt 00:01:10]} 13. c4 {[%clk 00:14:56]} {[%emt 00:00:04]}
Ne4 {[%clk 00:11:58]} {[%emt 00:00:59]} 14. Nbd2 {[%clk 00:14:10]} {[%emt
00:00:50]} Qf6 {[%clk 00:11:52]} {[%emt 00:00:12]} 15. Qxf6 {[%clk 00:13:53]}
{[%emt 00:00:22]} Nxf6 {[%clk 00:11:55]} {[%emt 00:00:02]} 16. Rac1 {[%clk
00:13:27]} {[%emt 00:00:30]} Rd8 {[%clk 00:11:11]} {[%emt 00:00:48]} 17. cxd5
{[%clk 00:13:22]} {[%emt 00:00:11]} Nxd5 {[%clk 00:11:03]} {[%emt 00:00:14]} 18.
Nc4 {[%clk 00:12:55]} {[%emt 00:00:31]} Ncb4 {[%clk 00:10:33]} {[%emt
00:00:36]} 19. e4 {[%clk 00:08:00]} {[%emt 00:05:00]} Nxa2 {[%clk 00:10:32]}
{[%emt 00:00:05]} 20. Rc2 {[%clk 00:08:04]} {[%emt 00:00:02]} Nab4 {[%clk
00:10:34]} {[%emt 00:00:02]} 21. Rcd2 {[%clk 00:08:08]} {[%emt 00:00:01]} 1-0

[Event "Rapid Tournament (RAP)"]
[Site "Biel, Switzerland"]
[Date "2026.07.12"]
[Round "8.28"]
[White "Sadeghi, Hassan Roger"]
[Black "Hajduk, Tomasz"]
[Result "1-0"]
[TimeControl "15 + 5"]
[WhiteTitle "-"]
[BlackTitle "-"]
[WhiteFideId "1304712"]
[BlackFideId "21811415"]
[WhiteElo "2028"]
[BlackElo "1879"]

1. Nf3 {[%clk 00:15:08]} c5 {[%clk 00:15:08]} {[%emt 00:00:04]} 2. g3 {[%clk
00:15:09]} {[%emt 00:00:03]} d5 {[%clk 00:15:10]} {[%emt 00:00:04]} 3. Bg2
{[%clk 00:15:11]} {[%emt 00:00:02]} Nf6 {[%clk 00:15:14]} {[%emt 00:00:02]} 4.
O-O {[%clk 00:15:12]} {[%emt 00:00:03]} Nc6 {[%clk 00:15:17]} {[%emt 00:00:03]}
5. d4 {[%clk 00:15:13]} {[%emt 00:00:03]} cxd4 {[%clk 00:15:10]} {[%emt
00:00:13]} 6. Nxd4 {[%clk 00:15:16]} {[%emt 00:00:01]} e5 {[%clk 00:15:14]}
{[%emt 00:00:02]} 7. Nxc6 {[%clk 00:15:18]} {[%emt 00:00:03]} bxc6 {[%clk
00:15:17]} {[%emt 00:00:02]} 8. c4 {[%clk 00:15:21]} {[%emt 00:00:02]} Bc5
{[%clk 00:14:20]} {[%emt 00:01:02]} 9. Bg5 {[%clk 00:14:50]} {[%emt 00:00:36]}
Be6 {[%clk 00:13:34]} {[%emt 00:00:52]} 10. cxd5 {[%clk 00:10:35]} {[%emt
00:04:19]} cxd5 {[%clk 00:13:22]} {[%emt 00:00:17]} 11. Nc3 {[%clk 00:10:37]}
{[%emt 00:00:03]} e4 {[%clk 00:10:05]} {[%emt 00:03:22]} 12. Qa4+ {[%clk
00:10:09]} {[%emt 00:00:33]} Bd7 {[%clk 00:09:26]} {[%emt 00:00:44]} 13. Qa6
{[%clk 00:10:03]} {[%emt 00:00:11]} Rc8 {[%clk 00:06:49]} {[%emt 00:02:42]} 14.
Bxf6 {[%clk 00:09:16]} {[%emt 00:00:52]} gxf6 {[%clk 00:06:33]} {[%emt
00:00:21]} 15. Nxd5 {[%clk 00:08:19]} {[%emt 00:01:03]} Rc6 {[%clk 00:06:26]}
{[%emt 00:00:11]} 16. Qa4 {[%clk 00:07:32]} {[%emt 00:00:52]} f5 {[%clk
00:06:04]} {[%emt 00:00:27]} 17. Nf4 {[%clk 00:07:05]} {[%emt 00:00:32]} h5
{[%clk 00:05:30]} {[%emt 00:00:39]} 18. h4 {[%clk 00:06:35]} {[%emt 00:00:34]}
Rg8 {[%clk 00:04:02]} {[%emt 00:01:34]} 19. e3 {[%clk 00:05:35]} {[%emt
00:01:05]} Bb6 {[%clk 00:01:05]} {[%emt 00:03:03]} 20. Qd1 {[%clk 00:04:41]}
{[%emt 00:00:57]} Rg4 {[%clk 00:00:48]} {[%emt 00:00:22]} 21. Rc1 {[%clk
00:03:57]} {[%emt 00:00:49]} Rxc1 {[%clk 00:00:21]} {[%emt 00:00:34]} 22. Qxc1
{[%clk 00:03:56]} {[%emt 00:00:05]} Qb8 {[%clk 00:00:13]} {[%emt 00:00:13]} 23.
Qc3 {[%clk 00:03:53]} {[%emt 00:00:08]} Rg8 {[%clk 00:00:08]} {[%emt 00:00:11]}
24. Nd5 {[%clk 00:03:18]} {[%emt 00:00:39]} Qd8 {[%clk 00:00:08]} {[%emt
00:00:06]} 25. Nf6+ {[%clk 00:03:03]} {[%emt 00:00:20]} 1-0

[Event "Rapid Tournament (RAP)"]
[Site "Biel, Switzerland"]
[Date "2026.07.12"]
[Round "8.29"]
[White "Aryan, Goyal"]
[Black "Labrovic, Jakov"]
[Result "1-0"]
[TimeControl "15 + 5"]
[WhiteTitle "-"]
[BlackTitle "-"]
[WhiteFideId "366108825"]
[BlackFideId "14549786"]
[WhiteElo "1869"]
[BlackElo "2005"]

1. e4 {[%clk 00:15:05]} {[%emt 00:00:07]} c5 {[%clk 00:15:09]} 2. Nf3 {[%clk
00:15:09]} d6 {[%clk 00:15:13]} 3. Bb5+ {[%clk 00:15:11]} {[%emt 00:00:03]} Bd7
{[%clk 00:15:15]} {[%emt 00:00:03]} 4. Bxd7+ {[%clk 00:15:14]} {[%emt
00:00:02]} Qxd7 {[%clk 00:15:19]} {[%emt 00:00:01]} 5. c4 {[%clk 00:15:18]}
{[%emt 00:00:02]} Nf6 {[%clk 00:15:21]} {[%emt 00:00:02]} 6. Nc3 {[%clk
00:15:22]} {[%emt 00:00:01]} g6 {[%clk 00:15:24]} {[%emt 00:00:02]} 7. d4
{[%clk 00:15:24]} {[%emt 00:00:03]} cxd4 {[%clk 00:15:25]} {[%emt 00:00:04]} 8.
Nxd4 {[%clk 00:15:28]} Nc6 {[%clk 00:15:26]} {[%emt 00:00:04]} 9. h3 {[%clk
00:15:17]} {[%emt 00:00:16]} Bg7 {[%clk 00:15:29]} {[%emt 00:00:03]} 10. Be3
{[%clk 00:15:20]} a6 {[%clk 00:15:16]} {[%emt 00:00:19]} 11. O-O {[%emt
00:00:05]} O-O {[%clk 00:15:17]} {[%emt 00:00:02]} 12. Qd2 {[%emt 00:00:12]}
Rac8 {[%clk 00:14:48]} {[%emt 00:00:32]} 13. b3 {[%clk 00:15:07]} {[%emt
00:00:14]} Rfd8 {[%clk 00:13:47]} {[%emt 00:01:06]} 14. Rac1 {[%clk 00:14:38]}
{[%emt 00:00:34]} e6 {[%clk 00:12:54]} {[%emt 00:00:58]} 15. Rfd1 {[%clk
00:14:12]} {[%emt 00:00:32]} d5 {[%clk 00:11:20]} {[%emt 00:01:38]} 16. cxd5
{[%clk 00:13:28]} {[%emt 00:00:50]} exd5 {[%clk 00:11:22]} {[%emt 00:00:02]} 17.
Nxc6 {[%clk 00:13:19]} {[%emt 00:00:14]} bxc6 {[%clk 00:11:24]} {[%emt
00:00:03]} 18. exd5 {[%clk 00:12:41]} {[%emt 00:00:43]} cxd5 {[%clk 00:11:20]}
{[%emt 00:00:09]} 19. Bb6 {[%clk 00:11:37]} {[%emt 00:01:10]} Re8 {[%clk
00:10:03]} {[%emt 00:01:21]} 20. Nxd5 {[%clk 00:11:17]} {[%emt 00:00:26]} Nxd5
{[%clk 00:09:45]} {[%emt 00:00:23]} 21. Rxc8 {[%clk 00:11:20]} {[%emt
00:00:02]} Rxc8 {[%clk 00:09:03]} {[%emt 00:00:47]} 22. Qxd5 {[%clk 00:11:21]}
{[%emt 00:00:03]} Qe8 {[%clk 00:08:11]} {[%emt 00:00:57]} 23. Qd7 {[%clk
00:10:55]} {[%emt 00:00:30]} Qxd7 {[%clk 00:08:12]} {[%emt 00:00:05]} 24. Rxd7
{[%clk 00:10:59]} {[%emt 00:00:01]} Rc1+ {[%clk 00:08:14]} {[%emt 00:00:03]} 25.
Kh2 {[%clk 00:11:02]} {[%emt 00:00:02]} Be5+ {[%clk 00:08:17]} {[%emt
00:00:02]} 26. g3 {[%clk 00:11:02]} {[%emt 00:00:05]} Rc2 {[%clk 00:08:16]}
{[%emt 00:00:06]} 27. a4 {[%clk 00:10:45]} {[%emt 00:00:23]} Rb2 {[%clk
00:08:03]} {[%emt 00:00:17]} 28. Ra7 {[%clk 00:10:23]} {[%emt 00:00:26]} h5
{[%clk 00:07:43]} {[%emt 00:00:26]} 29. Kg2 {[%clk 00:10:04]} {[%emt 00:00:24]}
Rxb3 {[%clk 00:07:12]} {[%emt 00:00:36]} 30. Rxa6 {[%clk 00:10:07]} {[%emt
00:00:02]} Ra3 {[%clk 00:07:13]} {[%emt 00:00:04]} 31. a5 {[%clk 00:10:11]}
{[%emt 00:00:01]} Bc3 {[%clk 00:06:34]} {[%emt 00:00:43]} 32. Ra8+ {[%clk
00:10:10]} {[%emt 00:00:08]} Kg7 {[%clk 00:06:37]} {[%emt 00:00:01]} 33. a6
{[%clk 00:10:11]} {[%emt 00:00:04]} Rb3 {[%clk 00:06:35]} {[%emt 00:00:07]} 34.
Rb8 {[%clk 00:09:41]} {[%emt 00:00:35]} Be5 {[%clk 00:04:42]} {[%emt 00:01:59]}
35. Bd4 {[%clk 00:09:27]} {[%emt 00:00:17]} 1-0